Cogmind - Beta 16 --- EXPLORER MODE // 2026.01.26 @ 10:12:25 Player: K.K.Y. Result: Core destroyed Performance ------------- Evolutions (4) 2000 Regions Visited (8) 1600 Robots Destroyed (86) 430 Value Destroyed (3086) 3086 Prototype IDs (15) 300 Alien Tech Used (0) 0 Bonus (2209) 2209 TOTAL SCORE: 9625 Bonus ------- Follower Combat Kills 628 Delivered SUBCON Basin 2000 Friendly Fire -419 Cogmind --------- Core Integrity 0/850 Matter 105/300 Energy 356/440 System Corruption 0% Temperature Critical (919) Movement Treading (160) Location -6/Factory Parts ------- > --- POWER (2) -------- Nuclear Core Angular Momentum Engine > --- PROPULSION (6) --- Medium Treads Medium Treads Medium Treads Medium Treads Improved Medium Treads Improved Medium Treads > --- UTILITY (6) ------ Improved Medium Armor Plating Makeshift Light Armor Plating Layered Light Armor Plating > --- WEAPON (2) ------- Improved KE Penetrator Gauss Cannon > --- INVENTORY (5) ---- Sensor Array Advanced ECM Suite Authchip [Weapon] Tech Extrapolator Mining Laser Peak State ------------ > --- POWER ------------ Nuclear Core Angular Momentum Engine > --- PROPULSION ------- Medium Treads Medium Treads Medium Treads Medium Treads Improved Medium Treads Improved Medium Treads > --- UTILITY ---------- Advanced Terrain Scanner Advanced ECM Suite Improved Medium Armor Plating Makeshift Light Armor Plating Layered Light Armor Plating Advanced Force Field > --- WEAPON ----------- Improved KE Penetrator Gauss Cannon > --- INVENTORY -------- Sensor Array Authchip [Weapon] Tech Extrapolator Mining Laser [Rating: 75] Favorites ----------- Power Light Nuclear Core Engine Ion Engine Power Core Light Nuclear Core Propulsion Light Treads Treads Light Treads Hover Unit Backup Propulsion III Utility Large Storage Unit Device Structural Scanner Storage Large Storage Unit Hackware Improved Hacking Suite Protection Hardened Medium Armor Plating Weapon Shotgun Energy Gun Medium Laser Energy Cannon Phase Cannon Ballistic Gun Shotgun Ballistic Cannon Assault Cannon Special Weapon Mining Laser Slashing Weapon Scythe Build | -11 -10 -10 -10 -8 -8 -6 -6 -6 ------- Run | Yrd Mat Min Sub Rec Scr Fac Was Fac Slots Evolved 9 | . 1 . . . . 8 . . Power 1 | . . . . . . 1 . . Propulsion 4 | . . . . . . 4 . . Utility 4 | . 1 . . . . 3 . . Weapon . | . . . . . . . . . Parts Attached 84 | 6 6 . 12 5 8 20 19 8 Power 7 | 1 . . 1 . 1 2 . 2 Engine 4 | 1 . . . . 1 1 . 1 Core 3 | . . . 1 . . 1 . 1 Reactor . | . . . . . . . . . Propulsion 24 | 2 . . 4 1 2 9 2 4 Treads 24 | 2 . . 4 1 2 9 2 4 Leg . | . . . . . . . . . Wheel . | . . . . . . . . . Hover . | . . . . . . . . . Flight . | . . . . . . . . . Utility 26 | 1 3 . 1 1 4 5 9 2 Device 10 | . 2 . . 1 2 3 2 . Storage 3 | 1 1 . 1 . . . . . Processor . | . . . . . . . . . Hackware 2 | . . . . . . 2 . . Protection 11 | . . . . . 2 . 7 2 Artifact . | . . . . . . . . . Weapon 27 | 2 3 . 6 3 1 4 8 . Energy Gun 3 | 1 . . . . . . 2 . Energy Cannon 4 | . . . . . . 4 . . Ballistic Gun 11 | 1 2 . 5 . . . 3 . Ballistic Cannon 7 | . . . 1 3 1 . 2 . Launcher . | . . . . . . . . . Special Weapon 1 | . 1 . . . . . . . Impact Weapon . | . . . . . . . . . Slashing Weapon 1 | . . . . . . . 1 . Piercing Weapon . | . . . . . . . . . Special Melee Weapon . | . . . . . . . . . Unidentified Prototypes 2 | . . . . . . . 2 . Parts Lost 28 | . . . 5 1 . 12 8 2 Power 3 | . . . 1 . . 1 1 . Propulsion 9 | . . . 3 . . 6 . . Utility 7 | . . . . . . 2 3 2 Weapon 9 | . . . 1 1 . 3 4 . Highest Loss Streak 7 | . . . 2 1 . 3 7 2 To Critical Strikes 1 | . . . . . . 1 . . Average Backups 18 | 1 6 9 13 21 33 32 6 4 Power . | . . . . . . . . . Propulsion 1 | . 2 4 1 1 2 1 . . Utility 10 | . 1 2 8 12 17 17 3 3 Weapon 5 | . 2 3 2 6 12 12 2 1 Tool/Special . | . . . . . . . . . Unused Backups 35 | . . . 1 1 7 5 19 2 Power 2 | . . . . . 1 . 1 . Propulsion 2 | . . . . . 1 1 . . Utility 18 | . . . 1 1 2 . 12 2 Weapon 12 | . . . . . 3 4 5 . Tool/Special 1 | . . . . . . . 1 . Average Slot Usage (%) 87 | . 93 100 93 88 84 74 55 89 Engine 4 | . 12 12 4 . 4 5 7 6 Core 6 | . . . 7 12 7 2 . . Treads 22 | . 25 25 20 25 25 27 4 33 Device 11 | . 19 25 20 3 . 13 4 17 Storage 15 | . 12 12 14 22 22 6 . . Protection 2 | . . . . . . 1 24 18 Ballistic Gun 12 | . 18 25 22 9 . . 5 6 Ballistic Cannon 8 | . . . . 15 25 3 . 6 Peak Build Rating 75 | 6 11 11 34 34 30 66 66 75 Average Rating 25 | 4 9 11 17 24 27 57 35 67 On Entrance 25 | . 6 11 11 34 23 29 66 51 Avg Prop Armor Cover (%) 1 | . . . . . . . 1 . Naked Turns 65 | . . . . . . . 65 . Heaviest Build 241 | 19 33 33 231 235 241 240 240 67 Greatest Support 180 | 40 40 40 40 40 42 180 90 172 Greatest Overweight (x) 19 | 1 . . 5 5 5 5 19 1 Average Overweight (x) 1 | . . . . 3 4 1 1 . Largest Inventory Capacity 35 | 10 15 15 35 35 35 35 35 5 Average Capacity 23 | 8 14 15 18 31 34 35 6 5 Most Carried 35 | 5 9 11 29 32 35 35 35 5 Average Carried 20 | 1 6 9 17 26 33 33 6 4 Final Capacity 35 | 10 15 15 35 35 35 35 5 5 Final Carried 35 | 2 9 11 29 32 35 35 4 5 Class Distribution -------------------- 51% | Hacker-Mutant 46% | Hauler-Mutant Dominant Class ---------------- Hacker-Mutant | -10/Materials Hacker-Mutant | -10/Mines Hacker-Mutant | -10/Subcaves Hauler-Mutant | -8/Recycling Hauler-Mutant | -8/Scraptown Hauler-Mutant | -6/Factory Hacker-Mutant | -6/Waste Hacker-Mutant | -6/Factory Resources | -11 -10 -10 -10 -8 -8 -6 -6 -6 ----------- Run | Yrd Mat Min Sub Rec Scr Fac Was Fac Matter Collected 2868 | 272 329 136 937 163 20 711 220 80 Remotely . | . . . . . . . . . Salvage Created 3110 | 126 537 178 640 214 . 1132 . 283 Parts 165 | 8 39 11 35 13 . 46 . 13 Haulers Intercepted 2 | . 2 . . . . . . . Recyclers Shooed . | . . . . . . . . . Parts Field Recycled . | . . . . . . . . . Retrieved Matter . | . . . . . . . . . Parts Self-Destructed . | . . . . . . . . . Prevented . | . . . . . . . . . Parts Restored . | . . . . . . . . . Kills | -11 -10 -10 -10 -8 -8 -6 -6 -6 ------- Run | Yrd Mat Min Sub Rec Scr Fac Was Fac Combat Hostiles Destroyed 67 | . 14 6 15 3 . 23 . 6 Melee 1 | . . . . . . 1 . . Guns 41 | . 14 6 14 2 . . . 5 Cannons 25 | . . . 1 1 . 22 . 1 Classes Destroyed 16 | 2 6 . 4 . . 3 . 1 Worker 1 | . . . . . . . . 1 Builder 2 | . 2 . . . . . . . Tunneler 2 | 2 . . . . . . . . Hauler 2 | . 2 . . . . . . . Recycler 3 | 1 . . . 1 . 1 . . Operator 1 | . . . . . . 1 . . Turret 2 | . . . 2 . . . . . Watcher 4 | . 3 . . . . 1 . . Swarmer 9 | . 4 2 1 . . 2 . . Grunt 30 | . 7 4 . . . 14 . 5 Sentry 8 | . . . 1 3 . 3 . 1 Hunter 2 | . . . . . . 2 . . Programmer 2 | . . . . . . 2 . . Artisan 4 | . . . 4 . . . . . Subdweller 16 | . 3 . 13 . . . . . Zionite 2 | . . . 2 . . . . . Best Kill Streak 7 | 2 6 3 2 1 . 4 . 7 Combat Bots Only 6 | . 5 3 2 1 . 4 . 6 Max Kills in Single Turn 2 | 1 2 2 1 1 . 1 . 2 Gunslinging 1 | . . 1 . . . . . . Exploded . | . . . . . . . . . Melee 1 | . . . . . . 1 . . Uniques/NPCs Destroyed . | . . . . . . . . . Combat | -11 -10 -10 -10 -8 -8 -6 -6 -6 -------- Run | Yrd Mat Min Sub Rec Scr Fac Was Fac Hostile Shots Fired 682 | . 61 24 111 8 . 361 10 107 Missed 182 | . 22 7 38 2 . 94 . 19 Hits 500 | . 39 17 73 6 . 267 10 88 Melee 10 | . . . . . . . 10 . Projectile 490 | . 39 17 73 6 . 267 . 88 AOE 1 | . . . 1 . . . . . Critical Strikes 17 | . . . 4 1 . 7 4 1 Damage Taken 5538 | . 325 130 858 56 . 2526 327 1316 Core 1090 | . 62 6 149 9 . 164 225 475 Absorbed by Shields . | . . . . . . . . . Ignored by Resistances 3067 | . 211 81 469 32 . 1544 181 549 Regen/Repaired (Parts) 652 | . . . . . 505 . 147 . Core Remaining (%) 54 | 100 . . . . 9 . . . Volleys Fired 274 | 4 44 17 109 7 . 72 4 17 Largest 2 | 2 2 2 2 2 . 2 2 2 Hottest 160 | 70 150 46 128 74 . 160 154 73 Shots Fired 541 | 8 88 34 217 13 . 140 7 34 Gun 330 | 8 87 34 170 9 . . 5 17 Cannon 191 | . . . 28 4 . 140 2 17 Launcher . | . . . . . . . . . Special 20 | . 1 . 19 . . . . . Kinetic 440 | 4 69 34 198 13 . 83 5 34 Thermal 73 | 4 19 . 19 . . 30 1 . Explosive . | . . . . . . . . . Electromagnetic 28 | . . . . . . 27 1 . Robot Hit Streak 45 | 6 45 13 45 45 . 35 14 27 Robot Miss Streak 5 | . 3 5 2 1 . 1 . 2 Penetration Max 1 | . . . . . . . . 1 Secondary Targets 4 | . 1 2 1 . . . . . Max Gunslinging Chain 1 | . 1 1 1 . . . . . Shots Hit Robots 397 | 6 72 30 123 12 . 124 8 22 Core Hits 176 | 4 38 16 48 6 . 52 2 10 Critical Kills . | . . . . . . . . . Critical Parts Destroyed . | . . . . . . . . . Critical Strikes 11 | . 3 . 2 . . 5 . 1 Burn 3 | . 3 . . . . . . . Destroy 2 | . . . 2 . . . . . Blast 6 | . . . . . . 5 . 1 Melee Attacks 1 | . . . . . . . 1 . Impact . | . . . . . . . . . Slashing 1 | . . . . . . . 1 . Piercing . | . . . . . . . . . Sneak Attacks . | . . . . . . . . . Combat Hostiles . | . . . . . . . . . Follow-up Attacks . | . . . . . . . . . Damage Inflicted 8378 | 71 1138 545 2220 229 . 3406 80 689 Guns 4211 | 71 1138 545 1835 155 . . 32 435 Cannons 4046 | . . . 385 69 . 3305 33 254 Explosions 88 | . . . . . . 88 . . Melee 15 | . . . . . . . 15 . Ramming 18 | . . . . 5 . 13 . . Kinetic 6604 | 22 962 545 2220 224 . 1910 32 689 Thermal 1122 | 49 176 . . . . 866 31 . Explosive . | . . . . . . . . . Electromagnetic 619 | . . . . . . 617 2 . Impact . | . . . . . . . . . Slashing 15 | . . . . . . . 15 . Piercing . | . . . . . . . . . Highest Corruption 2 | . . . . . . 2 . . Average Corruption 1 | . . . . . . 1 . . Corruption Purged 2 | . . . . . . 2 . . Corruption Blocked . | . . . . . . . . . Effects 8 | . . . . . . 8 . . Message Errors 3 | . . . . . . 3 . . Heat Flow Errors 1 | . . . . . . 1 . . Energy Discharges 3 | . . . . . . 3 . . Weapon Failures 1 | . . . . . . 1 . . Overload Shots . | . . . . . . . . . Overflow Damage 82 | . . . 4 . . 54 . 24 Projectiles 82 | . . . 4 . . 54 . 24 Explosions . | . . . . . . . . . Melee . | . . . . . . . . . Knockbacks 16 | . . . 3 . . 10 . 3 Impact . | . . . . . . . . . Kinetic 16 | . . . 3 . . 10 . 3 Secondary . | . . . . . . . . . Self-Inflicted Damage . | . . . . . . . . . Shots . | . . . . . . . . . Rammed 2 | . . . . 1 . 1 . . Targets Rammed 3 | . . . . 1 . 2 . . Kicked . | . . . . . . . . . Crushed 1 | . . . . . . 1 . . Highest Temperature 919 | 18 108 16 8 28 . 396 385 919 Average Temperature 216 | 8 26 5 4 13 . 123 254 527 Received Heat Transfer 2217 | . 192 114 240 54 . 927 . 690 Effects 58 | . . . . . . 1 29 28 Shutdowns 23 | . . . . . . . 14 9 Energy Bleed 10 | . . . . . . 1 6 3 Interference 1 | . . . . . . . 1 . Matter Decay 1 | . . . . . . . . 1 Short Circuit 9 | . . . . . . . 6 3 Damage (minor) 3 | . . . . . . . 2 1 Damage (major) 8 | . . . . . . . . 8 Damage (core) 3 | . . . . . . . . 3 Siege Activations . | . . . . . . . . . Martial Activations . | . . . . . . . . . Shielding Activations . | . . . . . . . . . Robots Disrupted . | . . . . . . . . . Combat Hostiles . | . . . . . . . . . Robots Corrupted . | . . . . . . . . . Combat Hostiles . | . . . . . . . . . Parts Fried 3 | . . . . . . 3 . . Impact Corruptions . | . . . . . . . . . Robots Melted . | . . . . . . . . . Combat Hostiles . | . . . . . . . . . Parts Melted 5 | . 3 . . . . 2 . . Heat Transferred 1913 | 148 740 . . . . 988 37 . Parts Sabotaged . | . . . . . . . . . Parts Stolen . | . . . . . . . . . Parts Stripped . | . . . . . . . . . Power Chain Reactions 1 | . . . . . . 1 . . Alert | -11 -10 -10 -10 -8 -8 -6 -6 -6 ------- Run | Yrd Mat Min Sub Rec Scr Fac Was Fac Maximum Alert Level 1 | . . . . . . . . 1 Low Security (%) 99 | 100 100 100 . 100 . 100 100 96 Level 1 . | . . . . . . . . 3 Level 2 . | . . . . . . . . . Level 3 . | . . . . . . . . . Level 4 . | . . . . . . . . . Level 5 . | . . . . . . . . . High Security . | . . . . . . . . . Max Security . | . . . . . . . . . Peak Influence 230 | 10 55 70 . 20 . 118 21 230 Initial 2 | . 2 . . . . . . . Average 9 | 2 7 6 . . . 21 . 78 Influence Increases 2046 | 15 334 150 125 83 . 666 30 643 Destroy 0b10 Robot/C 1300 | . 220 120 80 60 . 460 . 360 Destroy 0b10 Robot/NC 105 | 15 35 . . 5 . 15 . 35 Destroy Leader 308 | . 70 30 . . . 112 . 96 Allied During Kill 44 | . . . . . . . . 44 Successful Hack 82 | . 5 . . 18 . 42 . 17 Disable Machine 36 | . 4 . . . . 16 . 16 Destroy Structure 111 | . . . . . . 6 30 75 Lose Combat Pursuer 60 | . . . 45 . . 15 . . Influence Decreases 1831 | 10 339 150 125 83 . 666 30 428 Entered New Map 3 | . 3 . . . . . . . Time Decay 1628 | 10 336 150 105 83 . 606 10 328 Lost Part 100 | . . . 20 . . 60 . 20 Lost Ally 100 | . . . . . . . 20 80 Squads Dispatched 16 | . 2 . . . . 8 . 6 Investigation 10 | . 2 . . . . 5 . 3 Extermination 3 | . . . . . . 2 . 1 Reinforcement 1 | . . . . . . . . 1 Assault . | . . . . . . . . . Garrison 2 | . . . . . . 1 . 1 Intercept . | . . . . . . . . . Searches Triggered . | . . . . . . . . . Construction Impeded 1 | . . . . . . . . 1 Haulers Reinforced . | . . . . . . . . . Active Scanning Responses . | . . . . . . . . . Cargo Convoy Interrupts . | . . . . . . . . . Stealth | -11 -10 -10 -10 -8 -8 -6 -6 -6 --------- Run | Yrd Mat Min Sub Rec Scr Fac Was Fac Distress Signals 5 | . 2 . . . . 1 . 2 Communications Jammed . | . . . . . . . . . Distress Signals . | . . . . . . . . . Times Spotted 108 | . 22 6 19 2 . 28 10 21 Peak Tracking Total 11 | . 6 2 3 1 . 6 6 11 Tactical Retreats 3 | . . . 1 . . 1 1 . Traps | -11 -10 -10 -10 -8 -8 -6 -6 -6 ------- Run | Yrd Mat Min Sub Rec Scr Fac Was Fac Traps Triggered 6 | . . . 2 . . 4 . . Indirectly . | . . . . . . . . . Trap Hack Attempts . | . . . . . . . . . Triggered . | . . . . . . . . . Disarmed 6 | . . . . . . . . 6 Reprogrammed . | . . . . . . . . . Reused . | . . . . . . . . . Traps Extracted . | . . . . . . . . . Installed . | . . . . . . . . . Triggered . | . . . . . . . . . Machines | -11 -10 -10 -10 -8 -8 -6 -6 -6 ---------- Run | Yrd Mat Min Sub Rec Scr Fac Was Fac Machines Disabled 9 | . 1 . . . . 4 . 4 Max in Single Turn 1 | . 1 . . . . 1 . . Garrison Access 1 | . . . . . . 1 . . Machines Repaired . | . . . . . . . . . Machines Dismantled . | . . . . . . . . . Machines Sabotaged . | . . . . . . . . . Overloaded Fab Kills . | . . . . . . . . . Hacking | -11 -10 -10 -10 -8 -8 -6 -6 -6 --------- Run | Yrd Mat Min Sub Rec Scr Fac Was Fac Machines Accessed 29 | . 6 . 3 10 . 6 . 4 Terminals 17 | . 5 . . 6 . 3 . 3 Fabricators . | . . . . . . . . . Repair Stations . | . . . . . . . . . Recycling Units 6 | . 1 . . 4 . 1 . . Scanalyzers 1 | . . . . . . 1 . . Garrison Access 2 | . . . . . . 1 . 1 Total Hacks 85 | . 20 . 4 28 . 23 . 10 Successful 47 | . 7 . 4 19 . 13 . 4 Failed 38 | . 13 . . 9 . 10 . 6 Catastrophic 2 | . 1 . . . . 1 . . Database Lockouts . | . . . . . . . . . Manual 32 | . 19 . . 9 . 1 . 3 Terminals 59 | . 18 . . 21 . 12 . 8 Fabricators . | . . . . . . . . . Repair Stations . | . . . . . . . . . Recycling Units 11 | . 2 . . 7 . 2 . . Scanalyzers 7 | . . . . . . 7 . . Garrison Access 4 | . . . . . . 2 . 2 Terminal Hacks 27 | . 6 . 4 8 . 6 . 3 Record 2 | . . . 1 . . 1 . . Part Schematic 14 | . 3 . . 7 . 2 . 2 Robot Schematic 3 | . 3 . . . . . . . Robot Analysis 3 | . . . . 1 . 2 . . Open Door 1 | . . . 1 . . . . . Locate Traps 1 | . . . . . . 1 . . Disarm Traps 1 | . . . . . . . . 1 Proto ID Catalog 1 | . . . 1 . . . . . Release Object 1 | . . . 1 . . . . . Fabricator Hacks . | . . . . . . . . . Repair Station Hacks . | . . . . . . . . . Recycling Unit Hacks 5 | . 1 . . 4 . . . . Retrieve Components 5 | . 1 . . 4 . . . . Scanalyzer 6 | . . . . . . 6 . . Insert Component 3 | . . . . . . 3 . . Analyze 3 | . . . . . . 3 . . Garrison Access Hacks 1 | . . . . . . 1 . . Seal Access 1 | . . . . . . 1 . . Unauthorized Hacks 7 | . . . . 6 . . . 1 Terminals 7 | . . . . 6 . . . 1 Botnet 7 | . . . . 6 . . . 1 Fabricators . | . . . . . . . . . Repair Stations . | . . . . . . . . . Recycling Units . | . . . . . . . . . Scanalyzers . | . . . . . . . . . Garrison Access . | . . . . . . . . . Data Cores Recovered . | . . . . . . . . . Used . | . . . . . . . . . Hacking Detections 20 | . 5 . . 5 . 6 . 4 Full Trace Events 14 | . 4 . . 2 . 5 . 3 Feedback Events 1 | . . . . . . 1 . . Corruption 1 | . . . . . . 1 . . Feedback Blocked . | . . . . . . . . . Robot Schematics Acquired 3 | . 3 . . . . . . . Robots Built . | . . . . . . . . . Authchips . | . . . . . . . . . Time . | . . . . . . . . . Total Robot Build Rating . | . . . . . . . . . Part Schematics Acquired 16 | . 3 . . 7 . 4 . 2 Parts Built . | . . . . . . . . . Authchips . | . . . . . . . . . Time . | . . . . . . . . . Total Part Build Rating . | . . . . . . . . . Part Studies Acquired . | . . . . . . . . . Parts Repaired . | . . . . . . . . . Time . | . . . . . . . . . Parts Recycled . | . . . . . . . . . Recycled Matter . | . . . . . . . . . Retrieved Matter . | . . . . . . . . . Retrieved Components 26 | . 10 . . 16 . . . . Parts Scanalyzed 3 | . . . . . . 3 . . Part Schematics Acquired 2 | . . . . . . 2 . . Parts Damaged . | . . . . . . . . . Bothacking | -11 -10 -10 -10 -8 -8 -6 -6 -6 ------------ Run | Yrd Mat Min Sub Rec Scr Fac Was Fac Used RIF Installer . | . . . . . . . . . Robots Hacked . | . . . . . . . . . Non-combat . | . . . . . . . . . Combat . | . . . . . . . . . Robot Hacks Applied . | . . . . . . . . . Relay Couplers Released 4 | . . . . . . . . 4 Programmers 4 | . . . . . . . . 4 Fabnet Peak Effective % . | . . . . . . . . . Robots Rewired . | . . . . . . . . . Allies Hacked . | . . . . . . . . . Hacks Repelled . | . . . . . . . . . Allies | -11 -10 -10 -10 -8 -8 -6 -6 -6 -------- Run | Yrd Mat Min Sub Rec Scr Fac Was Fac Total Allies 19 | . . . . . . . 19 . Largest Group 19 | . . . . . . . 19 6 Highest-Rated Group 702 | . . . . . . . 702 243 Highest-Rated Ally 50 | . . . . . . . 50 50 Total Orders . | . . . . . . . . . Ally Attacks 135 | . . . . . . . 86 49 Total Damage 8111 | . . . . . . . 6112 1999 Kills 36 | . . . . . . . 18 18 Allies Corrupted . | . . . . . . . . . Allies Melted . | . . . . . . . . . Intel | -11 -10 -10 -10 -8 -8 -6 -6 -6 ------- Run | Yrd Mat Min Sub Rec Scr Fac Was Fac Active Infowar (turns) 8822 | . 1074 992 4844 667 29 1163 6 47 Sensors 8631 | . 1073 992 4843 666 . 1057 . . Terrain 77 | . . . . . 29 . 1 47 Structural 8739 | . 1074 992 4844 667 . 1162 . . ECM 5 | . . . . . . . 5 . Robot Analysis Total 3 | . . . . 1 . 2 . . Derelict Logs Recovered 4 | . . 2 2 . . . . . Drone Launches . | . . . . . . . . . Drone Recoveries . | . . . . . . . . . Exploration | -11 -10 -10 -10 -8 -8 -6 -6 -6 ------------- Run | Yrd Mat Min Sub Rec Scr Fac Was Fac Turns Passed 19454 | 78 1340 992 5969 4226 3381 1659 1265 544 Spaces Moved 6529 | 45 718 569 2270 1015 624 501 511 276 Core 234 | 18 . . . . . . 216 . Treads 6202 | 27 718 569 2270 1015 624 501 202 276 Legs . | . . . . . . . . . Wheels . | . . . . . . . . . Hover 93 | . . . . . . . 93 . Flight . | . . . . . . . . . Fastest Speed 50 | 50 160 160 160 160 157 239 50 160 Average Speed 263 | 118 160 160 215 405 533 269 192 160 Slowest Speed 1000 | 160 160 160 560 560 560 557 1000 240 Overloaded Moves . | . . . . . . . . . Propulsion Burnouts . | . . . . . . . . . Robots Hopped . | . . . . . . . . . Potential Cave-ins . | . . . . . . . . . Cave-ins Triggered . | . . . . . . . . . Exploration Rate (%) 61 | 3 97 99 94 99 50 11 95 8 Regions Visited 8 Branch Regions 4 Pre-discovered Areas 3 | . . 1 2 . . . . . Known Exits Taken 6 | 1 1 1 1 1 1 . . . Unknown Exits Taken . | . . . . . . . . . Scrap Searched 20 | . . 1 14 . 5 . . . Spaces Dug 2 | . . . 2 . . . . . Terrain Destroyed 10 | . . . 2 . . 5 . 3 Melee . | . . . . . . . . . Projectile 10 | . . . 2 . . 5 . 3 AOE . | . . . . . . . . . Terrain Rammed . | . . . . . . . . . Walls Destroyed . | . . . . . . . . . Machines Disabled . | . . . . . . . . . Actions | -11 -10 -10 -10 -8 -8 -6 -6 -6 --------- Run | Yrd Mat Min Sub Rec Scr Fac Was Fac Total 8203 | 61 821 617 3097 1110 687 676 786 348 Wait 1105 | . 35 30 683 47 . 45 228 37 Move 6522 | 44 717 568 2269 1014 623 501 510 276 Hop . | . . . . . . . . . Pick Up 129 | 7 12 2 11 24 40 21 6 6 Fast Attach 21 | 1 . . . 2 4 4 10 . Attach 50 | 5 5 . 6 3 1 17 7 6 Detach 8 | . 3 . . . 1 2 1 1 Swap 29 | . 2 . 12 3 4 3 3 2 Drop 61 | . 3 . 7 9 14 9 16 3 Fire 274 | 4 44 17 109 7 . 72 4 17 Melee 1 | . . . . . . . 1 . Ram . | . . . . . . . . . Kick . | . . . . . . . . . Crush 3 | . . . . 1 . 2 . . Escape Stasis . | . . . . . . . . . Rewire . | . . . . . . . . . Trap . | . . . . . . . . . Miscellaneous . | . . . . . . . . . Route ------- -11/Scrapyard -10/Materials (discovered 6 exits: *Mat x3 / *Min x2 / *Sub) -10/Mines (discovered 4 exits: *Mat x2 / Exi / *Sub) -10/Subcaves (discovered 3 exits: *Mat x2 / *Rec) -8/Recycling (discovered 2 exits: *Fac / *Scr) -8/Scraptown -6/Factory -6/Waste -6/Factory History --------- Turn | Location | Event 42 | -11/Scrapyard | Identified exit to Materials 42 | -11/Scrapyard | Discovered exit to Materials (range 16) 79 | -11/Scrapyard | Entered Materials 79 | -10/Materials | Evolved 1 slot: Utility x1 278 | -10/Materials | Identified exit to Materials 278 | -10/Materials | Discovered exit to Materials (range 16) 308 | -10/Materials | Build established: Hacker-Mutant 456 | -10/Materials | Identified exit to Mines 456 | -10/Materials | Discovered exit to Mines (range 5) 461 | -10/Materials | Discovered exit to Mines (range 10) 579 | -10/Materials | Derelicts attacked the area 932 | -10/Materials | Discovered exit to Materials (range 14) 1112 | -10/Materials | Discovered exit to Materials (range 14) 1281 | -10/Materials | Identified exit to Subcaves 1281 | -10/Materials | Discovered exit to Subcaves (range 8) 1419 | -10/Materials | Entered Mines 1443 | -10/Mines | Discovered exit to Subcaves (range 9) 1504 | -10/Mines | Discovered exit to Materials (range 11) 1507 | -10/Mines | Learned location of Storage (-8) 1764 | -10/Mines | Received a Rocket Launcher from a helpful Derelict 2019 | -10/Mines | Learned Materials stockpile data 2024 | -10/Mines | Learned location of 2 exits from Materials 2027 | -10/Mines | Discovered exit to Materials (range 5) 2182 | -10/Mines | Deemed a non-threat by the Exiles lab entrance 2182 | -10/Mines | Identified exit to Exiles 2182 | -10/Mines | Discovered exit to Exiles (range 6) 2411 | -10/Mines | Entered Subcaves 2412 | -10/Subcaves | Approached by a straggling Scientist 2750 | -10/Subcaves | Identified exit to Materials 2750 | -10/Subcaves | Discovered exit to Materials (range 10) 3230 | -10/Subcaves | Shifting Twisted Machinery released Piercing Trap 3297 | -10/Subcaves | Shifting Twisted Machinery released Sub. Monowheel 3298 | -10/Subcaves | Shifting Twisted Machinery released Humpback 3330 | -10/Subcaves | Shifting Twisted Machinery released Mak. Light Armor Plating 3440 | -10/Subcaves | Learned Materials stockpile data 3515 | -10/Subcaves | Disturbed a concealed Subdweller 4319 | -10/Subcaves | A swath of the cavern ceiling suddenly collapsed 4389 | -10/Subcaves | Core integrity fell below 50% 4398 | -10/Subcaves | Identified exit to Recycling 4398 | -10/Subcaves | Discovered exit to Recycling (range 13) 4573 | -10/Subcaves | Learned location of Zion (-7) 4573 | -10/Subcaves | Met a Zionite searching for "candidates" 4936 | -10/Subcaves | Learned location of Recycling (-8) 4966 | -10/Subcaves | Build established: Scavenger-Mutant 5124 | -10/Subcaves | Visited 4L-MR0's lab 5420 | -10/Subcaves | Build established: Hacker-Mutant 7065 | -10/Subcaves | Discovered exit to Materials (range 6) 7108 | -10/Subcaves | Disturbed a concealed Subdweller 7111 | -10/Subcaves | Core integrity fell below 20% 7256 | -10/Subcaves | Found SUBCON Basin 7544 | -10/Subcaves | Build established: Hauler-Mutant 8380 | -10/Subcaves | Entered Recycling 9371 | -8/Recycling | Scanned before Scraplab entrance 9450 | -8/Recycling | Entered Scraplab 9520 | -8/Recycling | Identified exit to Scraptown 9520 | -8/Recycling | Discovered exit to Scraptown (range 3) 9642 | -8/Recycling | Identified exit to Factory 9642 | -8/Recycling | Discovered exit to Factory (range 7) 9788 | -8/Recycling | Build established: Hacker-Mutant 10493 | -8/Recycling | Build established: Hauler-Mutant 12606 | -8/Recycling | Entered Scraptown 13862 | -8/Scraptown | Discovered exit to Factory (range 13) 14035 | -8/Scraptown | Visited CR-KLE's Repair Center 14068 | -8/Scraptown | Visited Spacefarers 14146 | -8/Scraptown | Visited Fellowship of the Rings 14892 | -8/Scraptown | Visited TADAMA 14975 | -8/Scraptown | Visited Cyclists 15170 | -8/Scraptown | Visited Cave Peace 15237 | -8/Scraptown | Visited Awakened 15480 | -8/Scraptown | CR-KLE repaired 8 parts 15987 | -8/Scraptown | Entered Factory 15987 | -6/Factory | Evolved 8 slots: Power x1, Propulsion x4, Utility x3 16312 | -6/Factory | Garrison activated, responded to threat 16417 | -6/Factory | Lost 3 parts (2n1u) 17175 | -6/Factory | Lost 3 parts (3n) 17298 | -6/Factory | Build established: Hacker-Mutant 17646 | -6/Factory | Sucked down chute 17646 | -6/Factory | Entered Waste 17672 | -6/Waste | Spotted C-40 Crusher 17682 | -6/Waste | Crushed by Compactor (1 part destroyed, 2 dropped) 17685 | -6/Waste | Crushed by Compactor (0 parts destroyed, 1 dropped) 17688 | -6/Waste | Crushed by Compactor (1 part destroyed, 1 dropped) 17691 | -6/Waste | Crushed by Compactor (1 part destroyed, 1 dropped) 17694 | -6/Waste | Crushed by Compactor (0 parts destroyed, 1 dropped) 17697 | -6/Waste | Crushed by Compactor (1 part destroyed, 2 dropped) 17700 | -6/Waste | Crushed by Compactor (1 part destroyed, 1 dropped) 17703 | -6/Waste | Crushed by Compactor (1 part destroyed) 17734 | -6/Waste | Lost 7 parts (1p3u3w) 17758 | -6/Waste | Spotted C-40 Crusher 17768 | -6/Waste | Spotted C-40 Crusher 17771 | -6/Waste | Spotted C-40 Crusher 17779 | -6/Waste | Crushed by Compactor (1 part destroyed) 17788 | -6/Waste | Spotted C-40 Crusher 17790 | -6/Waste | Spotted C-40 Crusher 17808 | -6/Waste | Identified exit to Factory 17808 | -6/Waste | Discovered exit to Factory (range 16) 17828 | -6/Waste | Warlord forces began an assault 17850 | -6/Waste | Allies destroyed C-40 Crusher 17854 | -6/Waste | Allies destroyed C-40 Crusher 17861 | -6/Waste | Allies destroyed C-40 Crusher 17864 | -6/Waste | Allies destroyed C-40 Crusher 17870 | -6/Waste | Allies destroyed C-40 Crusher 17901 | -6/Waste | Lost 13 allies 18911 | -6/Waste | Entered Factory 18911 | -6/Factory | Accompanied by 6 allies 19383 | -6/Factory | Garrison activated, responded to threat 19426 | -6/Factory | Core integrity fell below 50% 19434 | -6/Factory | Lost 4 allies 19443 | -6/Factory | Core integrity fell below 20% 19456 | -6/Factory | Core destroyed Last Messages --------------- 19449_ Overheating: Med. Treads damaged (-29). 19449_ Overheating: Imp. KE Penetrator damaged (-5). 19449_ U-05 Engineer lays Concrete. 19449_ U-05 Engineer builds a Wall. 19450_ Overheating: Med. Treads damaged (-40). 19450_ U-05 Engineer lays Concrete. 19451_ Med. Treads broken. 19451_ Overheating: Short circuit. 19452_ Overheating: Energy bleed (-40). 19452_ U-05 Engineer lays Concrete. 19452_ Slug penetrates G-50 Soldier. 19453_ Power failure, Nuclear Core shutdown. 19453_ Power failure, Angular Momentum Engine shutdown. 19453_ U-05 Engineer lays Concrete. 19454_ U-05 Engineer builds a Wall. 19454_ U-05 Engineer lays Concrete. 19455_ Slug penetrates G-50 Soldier. 19456_ Overheating: Core damaged (-161). Map ----- +----------------------------------------------------+ | ?????????????????????????????????????????????????? | | ?????????????????????????????????????????????????? | | ?????????????????????????????????????????????????? | | ?????????????????????????????????????????????????? | | ????????????????????????? ???? ??????????????? | | ???????????????????????# ???? ??????????????? | | ???????????????????????# ???????????????????? | | ?????????????????? ????# ????????? ?????????? | | ???????????????????????# ???????????????????? | | ???????????????????????# #???????????????????? | | ??????????????? ?????? # #???????????????????? | | ????????????????#??????# #???????????????????? | | ???????????????????????# #???????????????????? | | ???????????????????????# ##############??????? | | ??????????? ???????????# # ???????? | | ???????????????????????# # "" ????????? | | ???????????????#??#????# A # "" """""????????? | | ??????? ????????### #### # "T """""????????? | | ?????????? ?????# # "" """""??????#?? | | ????????????##??# # "" """""????????? | | ????????????* ## """""" + """""????????? | | ?????????? = ##* """"" # """""????????? | | ????????? +=u """" %# """"?????????? | | ????????? ##u !! """ m# """"?????????? | | ????????????????# !%! m # """"???#?????? | | ???????????????# ![ @ =# ?????????? | | ???????????????## u =[*#########+##????????? | | ???????????????# =] %%[!gT###????# #?????????? | | ???????????????## ]] [!%%[=# ###??# #?????????? | | ????????????? ??# g==%######### #?????????? | | ????????????????# !==u% ##????????? | | ????????????????# %%% %% #???#?????? | | ????############# [%%k !] ###???????? | | ? % =! ]] "#???????? | | ? [=! ] ""#???????? | | ? [= G#???????? | | ????############# [! u ""#???????? | | ????????????????#+##+#######;;; "##??????? | | ????????????????# #???### % ##?????? | | ????????????????# " " #???#?# " #?????? | | ????????????????# " " #?????# ####### | | ????????????????# " " ! #????? + | | ????????????????# " " #?#???# # """ | | ????????????????# " " !!#?????# # """ | | ????????????????# " " ! ##########+## # """ | | ????????????????# " " # # # | | ????????????????# " " # # # """ " | | ????????????????# " " # ! #% # """ " | | ????????????????# # #% # """ " | | ????????????????######### """ """ # + | +----------------------------------------------------+ Best States ------------- Heat Dissipation 73 Energy Generation 28 Energy Capacity 440 Matter Stores 300 Matter Capacity 300 Sight Range 16 Robot Scan Range 14 Terrain Scan Range 20 Terrain Scan Density 10 Armor Coverage 1350 Resistance: KI 35 Resistance: TH 35 Resistance: EX 35 Resistance: EM 35 Resistance: I 35 Resistance: S 35 Resistance: P 35 Evasion (%) 50 Recoil Reduction 6 Offensive Hacking 42 Authchip Count 2 Item Schematics ----------------- Huge Storage Unit | -10/Materials | Hacked Hcp. Storage Unit | -10/Materials | Hacked Lrg. Storage Unit | -10/Materials | Hacked Chainsword | -8/Recycling | Hacked Imp. Carbon-fiber Leg | -8/Recycling | Hacked Adv. Signal Interpreter | -8/Recycling | Hacked Adv. Targeting Computer | -8/Recycling | Hacked Thermal Shield | -8/Recycling | Hacked Lgt. Fission Core | -8/Recycling | Hacked Adv. ECM Suite | -8/Recycling | Hacked Imp. Hacking Suite | -6/Factory | Scanalyzed Mak. System Restoration Module | -6/Factory | Scanalyzed EM Shield | -6/Factory | Hacked Phase Cannon | -6/Factory | Hacked Power Amplifier | -6/Factory | Hacked Proton Cannon | -6/Factory | Hacked Robot Schematics ------------------ G-34 Mercenary | -10/Materials | Hacked W-16 Scout | -10/Materials | Hacked S-10 Pest | -10/Materials | Hacked Fabricated ------------ Nothing Repaired ---------- Nothing Studied --------- None Alien Tech Used ----------------- None Achievements -------------- None Challenges ------------ None Game ------ Seed ZeronetReactiveWeb Manual? 0 Play Time 00:55:40 Cumulative 309.5 hours Start 2026.01.26 @ 09:17:29 End 2026.01.26 @ 10:12:25 Sessions 1 Manual Loads 0 Difficulty Explorer Special Mode None Game No. 480 Rogue 0 Adventurer 0 Explorer 480 Win Type - Total 0 Types 0/0/0/0/0/0/0/0/0/0 Lore% 77 Gallery% 70 Achievement% 56 Wizard Run 0 Options --------- Layout 1 ASCII 0 Keyboard 0 Movement Mouse Keybinds 1 Fullscreen 1 Font 24/Smallcaps Map View 50x35 Zoom Use 0% Tactical HUD 1 Map Filters NONE Filters NONE Steam 1 RUN: af18f270-8460-411f-abf9-383d2a0ad373